[Event "WTCC-65 2018"]
[Site "Radebeul"]
[Date "2018.07.10"]
[Round "4"]
[White "Weisenburger, Horst"]
[Black "Haakert, Juergen"]
[Result "1/2-1/2"]
[ECO "A40"]
[WhiteElo "2096"]
[BlackElo "2302"]
[Annotator "NA"]
[PlyCount "90"]
[EventDate "2018.07.07"]
[EventType "team-tourn"]
[EventCountry "GER"]
[SourceTitle "playchess.com"]
[Source "ChessBase"]
[SourceQuality "1"]
[TimeControl "40/5400+30:1800+30"]

1. d4 {[%emt 0:00:00]} e6 {[%emt 0:00:07]} 2. Nf3 {[%emt 0:00:03]} c5 {[%emt 0:00:10]} 3. c3 {[%emt 0:01:00]} Nc6 {[%emt 0:00:13]} 4. Bf4 {[%emt 0:01:07]} Nf6 {[%emt 0:00:59]} 5. e3 {[%emt 0:02:41]} b6 {[%emt 0:01:14]} 6. Nbd2 {[%emt 0:02:45] A46: 1 d4 Nf6 2 Nf3 e6: Torre, London and Colle Systems} Bb7 {[%emt 0:02:23]} 7. Bd3 {[%emt 0:04:25]} d5 {[%emt 0:01:28]} 8. Ne5 {[%emt 0:14:23]} Bd6 {[%emt 0:00:32]} 9. Ndf3 {[%emt 0:03:00]} (9. Bg3 O-O 10. f4 Ne7 11. O-O Ne4 12. Qc2 f6 13. Nef3 Nxg3 14. hxg3 f5 15. g4 c4 16. Be2 Qe8 17. Ne5 Bxe5 18. dxe5 {1-0 (52) Zhao,X (2504)-Kosteniuk,A (2555) Doha 2016}) 9... O-O {[%emt 0:02:40]} 10. Bg5 {[%emt 0:15:37]} Be7 {[%emt 0:06:09]} 11. h4 {[%emt 0:11:57]} ({Predecessor:} 11. Bc2 Re8 12. O-O Rc8 13. Nxc6 Bxc6 14. Ne5 Bb7 15. Re1 Qc7 16. Rc1 Nd7 17. Bf4 Bd6 18. Nxd7 Bxf4 {0-1 (62) Rozo Pulido,C (1456)-Valencia Lopez,D (1607) Ibague 2013}) 11... Ne4 {[%emt 0:20:53]} 12. Nxc6 {[%emt 0:07:55]} Bxc6 {[%emt 0:01:09]} 13. Bxe7 {[%emt 0:01:50]} Qxe7 {[%emt 0:00:08]} 14. Ne5 {[%emt 0:05:55]} Be8 {[%emt 0:05:16]} 15. f3 {[%emt 0:03:03]} Nd6 {[%emt 0:00:29]} 16. Qc2 {[%emt 0:07:19]} g6 {[%emt 0:04:06]} 17. h5 {[%emt 0:04:54]} Qg5 {[%emt 0:00:25]} 18. Qf2 {[%emt 0:02:52]} Nf5 {[%emt 0:05:05]} 19. f4 {[%emt 0:03:05]} Qg3 {[%emt 0:01:07]} 20. Bxf5 {[%emt 0:01:39]} Qxf2+ 21. Kxf2 gxf5 {[%emt 0:00:49]} 22. Rag1 {[%emt 0:00:43]} f6 {[%emt 0:00:33]} 23. Nf3 {[%emt 0:00:02]} Kh8 {[%emt 0:08:32]} 24. g4 {[%emt 0:01:22]} fxg4 25. Rxg4 Bf7 {[%emt 0:00:57]} 26. Rgh4 {[%emt 0:04:02]} Rae8 {[%emt 0:03:47]} 27. Rg1 {[%emt 0:01:09]} Rg8 {[%emt 0:00:32]} 28. Nh2 {[%emt 0:00:34]} Rxg1 {[%emt 0:06:28]} 29. Kxg1 {[%emt 0:00:01]} e5 {[%emt 0:01:47]} 30. dxe5 {[%emt 0:00:38]} fxe5 {[%emt 0:00:06]} 31. Kf2 {[%emt 0:00:35]} d4 {[%emt 0:00:30]} 32. exd4 {[%emt 0:00:29]} exd4 {[%emt 0:00:02]} 33. cxd4 {[%emt 0:00:11]} cxd4 {[%emt 0:00:01]} 34. Nf3 {[%emt 0:00:21]} Bxa2 {[%emt 0:03:22]} 35. Nxd4 {[%emt 0:00:01]} Re4 {[%emt 0:01:28]} 36. Nb5 {[%emt 0:01:47]} a6 {[%emt 0:00:47]} 37. Nc3 {[%emt 0:00:10]} Rb4 {[%emt 0:00:06]} 38. Nd1 {[%emt 0:00:54]} Kg7 {[%emt 0:01:06]} 39. h6+ {[%emt 0:00:20]} Kf6 {[%emt 0:00:17]} 40. Rg4 {[%emt 0:00:19]} Bb1 {[%emt 0:02:49]} 41. Ke3 {[%emt 0:08:43]} Bg6 {[%emt 0:01:34]} 42. Rg2 {[%emt 0:05:16]} Re4+ {[%emt 0:07:09]} 43. Kf3 {[%emt 0:00:43]} Rb4 {[%emt 0:01:08]} 44. Ke3 $11 {[%emt 0:06:31]} Re4+ {[%emt 0:05:20]} 45. Kf3 {[%emt 0:00:04]} Rb4 {[%emt 0:00:07] Ke4 Ke5+} 1/2-1/2

[Event "WTCC-65 2018"]
[Site "Radebeul"]
[Date "2018.07.10"]
[Round "4"]
[White "Lindner, Jan-Joost"]
[Black "Seret, Jean-Luc"]
[Result "0-1"]
[ECO "B00"]
[WhiteElo "2058"]
[BlackElo "2353"]
[Annotator "NA"]
[PlyCount "100"]
[EventDate "2018.07.07"]
[EventType "team-tourn"]
[EventCountry "GER"]
[SourceTitle "playchess.com"]
[Source "ChessBase"]
[SourceQuality "1"]
[TimeControl "40/5400+30:1800+30"]

1. e4 {[%emt 0:00:00]} b6 {[%emt 0:00:09]} 2. Be2 {[%emt 0:00:00]} Bb7 {[%emt 0:00:37]} 3. d3 {[%emt 0:00:00]} d5 {[%emt 0:06:57]} 4. exd5 {[%emt 0:00:19]} Nf6 {[%emt 0:01:54]} 5. Nc3 {[%emt 0:00:34]} Nxd5 {[%emt 0:01:49]} 6. Nxd5 {[%emt 0:00:15]} Bxd5 {[%emt 0:00:39]} 7. Bf3 {[%emt 0:00:05]} e6 {[%emt 0:03:12]} 8. Bxd5 {[%emt 0:02:40]} Qxd5 {[%emt 0:00:16]} 9. Qf3 {[%emt 0:00:10]} c6 {[%emt 0:00:24]} 10. Qxd5 {[%emt 0:01:59]} cxd5 {[%emt 0:00:09]} 11. d4 {[%emt 0:05:47]} Nc6 {[%emt 0:00:25]} 12. c3 {[%emt 0:00:05]} Bd6 {[%emt 0:00:24]} 13. Ne2 {[%emt 0:00:15]} Kd7 {[%emt 0:00:47]} 14. Bf4 {[%emt 0:00:27]} Be7 {[%emt 0:00:48]} 15. O-O {[%emt 0:01:26]} Rhc8 {[%emt 0:01:44]} 16. Nc1 {[%emt 0:01:19]} Na5 {[%emt 0:01:19]} 17. Nd3 {[%emt 0:00:22]} f6 {[%emt 0:00:14]} 18. h4 {[%emt 0:01:23]} Nc4 {[%emt 0:00:31]} 19. Rfe1 {[%emt 0:00:40]} Bd6 {[%emt 0:05:10]} 20. Re2 {[%emt 0:01:20]} Re8 {[%emt 0:01:08]} 21. Rae1 {[%emt 0:00:54]} Re7 {[%emt 0:00:15]} 22. f3 {[%emt 0:09:18]} Rae8 {[%emt 0:00:37]} 23. Bxd6 Kxd6 24. Rd1 {[%emt 0:08:25]} Kd7 {[%emt 0:02:54]} 25. Kf2 {[%emt 0:01:38]} Nd6 {[%emt 0:00:20]} 26. g3 {[%emt 0:00:34]} Nc4 {[%emt 0:01:06]} 27. Nf4 {[%emt 0:00:35]} Nd6 {[%emt 0:04:12]} 28. Nd3 {[%emt 0:03:10]} Nb5 {[%emt 0:00:24]} 29. Nf4 {[%emt 0:00:40]} Nc7 {[%emt 0:00:25]} 30. Nd3 {[%emt 0:02:07]} Kc6 {[%emt 0:00:37]} 31. Rde1 {[%emt 0:03:01]} a5 {[%emt 0:00:45]} 32. a4 {[%emt 0:00:38]} Kd6 {[%emt 0:00:45]} 33. f4 {[%emt 0:01:41]} h5 {[%emt 0:01:19]} 34. Kf3 {[%emt 0:02:47]} Na6 {[%emt 0:00:08]} 35. Rc1 {[%emt 0:04:37]} Rc8 {[%emt 0:00:52]} 36. b3 {[%emt 0:00:11]} Nb8 {[%emt 0:03:22]} 37. Ke3 {[%emt 0:01:58]} Nc6 {[%emt 0:03:49]} 38. Kd2 {[%emt 0:03:12]} Rec7 {[%emt 0:01:29]} 39. Rce1 {[%emt 0:01:37]} Nd8 {[%emt 0:00:09]} 40. Rc1 {[%emt 0:00:12]} Nf7 {[%emt 0:00:27]} 41. Rce1 {[%emt 0:33:52]} Re7 {[%emt 0:30:17]} 42. f5 {[%emt 0:06:24]} e5 {[%emt 0:00:52]} 43. Nf4 {[%emt 0:06:41]} Rec7 {[%emt 0:07:34]} 44. c4 {[%emt 0:10:06]} exf4 {[%emt 0:03:52]} 45. Re6+ {[%emt 0:00:12]} Kd7 {[%emt 0:00:05]} 46. c5 {[%emt 0:00:22]} bxc5 {[%emt 0:01:04]} 47. Re7+ {[%emt 0:01:59]} Kc6 {[%emt 0:00:46]} 48. dxc5 {[%emt 0:05:17]} Rxe7 {[%emt 0:01:40]} 49. Rxe7 {[%emt 0:00:07]} fxg3 {[%emt 0:00:11]} 50. Rxf7 {[%emt 0:00:30]} Rc7 0-1

[Event "WTCC-65 2018"]
[Site "Radebeul"]
[Date "2018.07.10"]
[Round "4"]
[White "Kratschmer, Heinz"]
[Black "Hammar, Bengt"]
[Result "1/2-1/2"]
[ECO "A48"]
[WhiteElo "2032"]
[BlackElo "2159"]
[Annotator "NA"]
[PlyCount "78"]
[EventDate "2018.07.07"]
[EventType "team-tourn"]
[EventCountry "GER"]
[SourceTitle "playchess.com"]
[Source "ChessBase"]
[SourceQuality "1"]
[TimeControl "40/5400+30:1800+30"]

1. d4 {[%emt 0:00:00]} Nf6 {[%emt 0:00:10]} 2. Nf3 {[%emt 0:00:00]} g6 {[%emt 0:00:29]} 3. Nc3 {[%emt 0:00:00]} d5 {[%emt 0:04:12]} 4. Bf4 {[%emt 0:00:00]} Bg7 {[%emt 0:01:29]} 5. e3 {[%emt 0:00:07]} O-O {[%emt 0:00:35]} 6. Be2 {[%emt 0:00:05]} b6 {[%emt 0:02:24]} 7. Ne5 {[%emt 0:00:53]} Bb7 {[%emt 0:00:33]} 8. h4 {[%emt 0:00:17]} Nfd7 {[%emt 0:04:11]} 9. h5 {[%emt 0:09:08]} Nxe5 {[%emt 0:03:59]} 10. Bxe5 {[%emt 0:00:37]} Nd7 {[%emt 0:00:34]} 11. hxg6 {[%emt 0:05:29]} hxg6 {[%emt 0:00:10]} 12. Bxg7 {[%emt 0:00:42]} Kxg7 {[%emt 0:00:08]} 13. Qd2 {[%emt 0:09:00]} Rh8 {[%emt 0:00:27]} 14. O-O-O {[%emt 0:00:15]} Nf6 {[%emt 0:02:10]} 15. f3 {[%emt 0:01:23]} Qd6 {[%emt 0:03:14]} 16. f4 {[%emt 0:04:17]} Qd7 {[%emt 0:05:12]} 17. Bf3 {[%emt 0:08:30]} Rxh1 {[%emt 0:05:03]} 18. Rxh1 {[%emt 0:00:07]} Rh8 {[%emt 0:00:10]} 19. Rxh8 {[%emt 0:02:14]} Kxh8 {[%emt 0:01:05]} 20. Qe1 {[%emt 0:01:08]} Kg7 {[%emt 0:00:18]} 21. Qh4 {[%emt 0:05:29]} Qe6 {[%emt 0:04:39]} 22. Nd1 {[%emt 0:05:01]} Bc8 {[%emt 0:01:23]} 23. Qg5 {[%emt 0:02:03]} Qf5 {[%emt 0:09:26]} 24. Qh4 {[%emt 0:06:22]} c5 {[%emt 0:05:32]} 25. c3 {[%emt 0:03:21]} Qd3 {[%emt 0:07:18]} 26. g4 {[%emt 0:00:08]} Qf1 {[%emt 0:01:28]} 27. Qf2 {[%emt 0:00:12]} Qa6 {[%emt 0:00:52]} 28. g5 {[%emt 0:01:06]} Ne4 {[%emt 0:01:29]} 29. Bxe4 {[%emt 0:02:03]} dxe4 {[%emt 0:00:03]} 30. dxc5 {[%emt 0:04:37]} Qxa2 {[%emt 0:00:38]} 31. cxb6 {[%emt 0:06:04]} Qa1+ {[%emt 0:02:06]} 32. Kd2 {[%emt 0:01:10]} axb6 {[%emt 0:00:41]} 33. Ke1 {[%emt 0:00:36]} Bg4 {[%emt 0:01:19]} 34. Qc2 {[%emt 0:01:17]} Bxd1 {[%emt 0:02:12]} 35. Qxd1 {[%emt 0:00:01]} Qxb2 {[%emt 0:00:11]} 36. Qd4+ {[%emt 0:01:15]} Kh7 {[%emt 0:00:16]} 37. c4 {[%emt 0:02:52]} Qc2 {[%emt 0:13:20]} 38. Qd5 {[%emt 0:05:25]} Kg7 {[%emt 0:03:10]} 39. Qe5+ {[%emt 0:01:44]} Kg8 {[%emt 0:00:45]} 1/2-1/2

[Event "WTCC-65 2018"]
[Site "Radebeul"]
[Date "2018.07.11"]
[Round "5"]
[White "Balashov, Yuri S"]
[Black "Mishuchkov, Nikolai M"]
[Result "1-0"]
[ECO "B46"]
[WhiteElo "2423"]
[BlackElo "2311"]
[Annotator "NA RC"]
[PlyCount "76"]
[EventDate "2018.07.07"]
[EventType "team-tourn"]
[EventCountry "GER"]
[SourceTitle "playchess.com"]
[Source "ChessBase"]
[SourceQuality "1"]
[TimeControl "40/5400+30:1800+30"]

1. e4 {[%emt 0:00:00]} c5 {[%emt 0:00:00]} 2. Nf3 {[%emt 0:00:00]} e6 {[%emt 0:00:00]} 3. Nc3 {[%emt 0:00:24]} Nc6 {[%emt 0:00:14]} 4. d4 {[%emt 0:01:08]} cxd4 {[%emt 0:00:10]} 5. Nxd4 {[%emt 0:00:07]} a6 {[%emt 0:00:46]} 6. Be3 {[%emt 0:00:24]} Nf6 {[%emt 0:01:43]} 7. Bd3 {[%emt 0:00:47]} Qc7 {[%emt 0:00:48]} 8. O-O {[%emt 0:00:55]} Bd6 {[%emt 0:00:29]} 9. h3 {[%emt 0:01:12]} Bf4 {[%emt 0:02:07]} 10. Bxf4 {[%emt 0:11:41]} Qxf4 {[%emt 0:01:02]} 11. Nxc6 {[%emt 0:00:28]} dxc6 {[%emt 0:04:09]} 12. Qe2 {[%emt 0:02:42]} e5 {[%emt 0:01:03]} 13. a4 {[%emt 0:01:24]} Qg5 {[%emt 0:03:54]} 14. Qf3 {[%emt 0:01:57]} h5 {[%emt 0:04:29]} 15. a5 {[%emt 0:05:01]} Bg4 {[%emt 0:20:41]} 16. Qg3 {[%emt 0:07:12]} h4 {[%emt 0:00:12]} 17. f4 {[%emt 0:00:58]} exf4 {[%emt 0:00:12]} 18. Qxf4 {[%emt 0:00:09]} Qxf4 {[%emt 0:00:07]} 19. Rxf4 {[%emt 0:00:06]} Be6 {[%emt 0:00:10]} 20. e5 {[%emt 0:10:02]} Nd7 {[%emt 0:03:27]} 21. Bf5 {[%emt 0:00:30]} O-O-O {[%emt 0:09:33]} 22. Bxe6 {[%emt 0:03:08]} fxe6 {[%emt 0:00:11]} 23. Raa4 {[%emt 0:05:20]} Nxe5 {[%emt 0:28:12]} 24. Rxh4 {[%emt 0:03:59]} Rxh4 {[%emt 0:02:34]} 25. Rxh4 {[%emt 0:00:09]} Rd2 {[%emt 0:00:17]} 26. Rh8+ {[%emt 0:02:20]} Kc7 {[%emt 0:00:36]} 27. Rh7 {[%emt 0:00:46]} Rd7 {[%emt 0:01:58]} 28. Na4 {[%emt 0:07:45]} Re7 {[%emt 0:00:14]} 29. Nc5 {[%emt 0:03:46]} Kd6 {[%emt 0:00:12]} 30. b4 {[%emt 0:01:02]} Nc4 {[%emt 0:00:59]} 31. h4 {[%emt 0:03:57]} Ne3 {[%emt 0:05:41]} 32. c3 {[%emt 0:01:27]} Nd5 {[%emt 0:00:38]} 33. h5 {[%emt 0:02:01]} Nf6 {[%emt 0:01:26]} 34. Rh8 {[%emt 0:00:05]} Kd5 {[%emt 0:01:46]} 35. h6 {[%emt 0:08:57]} gxh6 {[%emt 0:00:22]} 36. Rxh6 {[%emt 0:00:10]} Ne8 {[%emt 0:01:19]} 37. Rh4 {[%emt 0:00:40]} e5 38. c4+ Kd6 1-0

[Event "WTCC-65 2018"]
[Site "Radebeul"]
[Date "2018.07.11"]
[Round "5"]
[White "Schmidt, Bodo"]
[Black "Boidman, Yuri"]
[Result "0-1"]
[ECO "E10"]
[WhiteElo "2344"]
[BlackElo "2358"]
[Annotator "NA"]
[PlyCount "112"]
[EventDate "2018.07.07"]
[EventType "team-tourn"]
[EventCountry "GER"]
[SourceTitle "playchess.com"]
[Source "ChessBase"]
[SourceQuality "1"]
[TimeControl "40/5400+30:1800+30"]

1. d4 {[%emt 0:00:00]} Nf6 {[%emt 0:00:00]} 2. Nf3 {[%emt 0:00:00]} c5 {[%emt 0:00:00]} 3. d5 {[%emt 0:00:34]} e6 {[%emt 0:00:11]} 4. c4 {[%emt 0:00:36]} b5 {[%emt 0:00:17]} 5. Bg5 {[%emt 0:01:15]} exd5 {[%emt 0:08:29]} 6. cxd5 {[%emt 0:00:53]} Qa5+ {[%emt 0:00:52]} 7. Bd2 {[%emt 0:05:40] E10: Blumenfeld Gambit} Qb6 {[%emt 0:02:28]} 8. e4 {[%emt 0:02:25]} d6 {[%emt 0:01:18]} 9. a4 {[%emt 0:06:29]} b4 {[%emt 0:01:09]} 10. Bg5 {[%emt 0:02:51]} Be7 {[%emt 0:01:17]} 11. Nbd2 {[%emt 0:07:36]} h6 $146 {[%emt 0:03:59]} ({Predecessor:} 11... O-O 12. Nc4 Qd8 13. e5 Ne8 14. Bf4 Bb7 {0-1 (62) Song,M (2181)-Sambuev,B (2532) Aurora 2014}) 12. Bb5+ {[%emt 0:12:40]} Nbd7 {[%emt 0:16:37]} 13. Nc4 {[%emt 0:21:41]} Qc7 {[%emt 0:06:17]} 14. Bxf6 {[%emt 0:00:18]} Bxf6 {[%emt 0:02:55]} 15. e5 {[%emt 0:03:37]} dxe5 {[%emt 0:05:24]} 16. O-O {[%emt 0:01:28]} O-O {[%emt 0:03:08]} 17. d6 {[%emt 0:00:00]} Qb7 18. Bxd7 {[%emt 0:00:00]} Bxd7 {[%emt 0:01:16]} 19. Nfxe5 {[%emt 0:04:24]} Be6 20. Rc1 Rfd8 {[%emt 0:04:42]} 21. f4 {[%emt 0:03:31]} Rac8 {[%emt 0:05:23]} 22. Qd3 {[%emt 0:02:49]} Qa6 {[%emt 0:14:27]} 23. b3 {[%emt 0:04:01]} Bxc4 {[%emt 0:00:34]} 24. Nxc4 {[%emt 0:00:29]} Bd4+ {[%emt 0:00:17]} 25. Kh1 {[%emt 0:00:13]} Rxd6 {[%emt 0:00:10]} 26. Rce1 {[%emt 0:01:23]} Re6 {[%emt 0:02:02]} 27. f5 {[%emt 0:00:30]} Rxe1 {[%emt 0:00:30]} 28. Rxe1 {[%emt 0:00:30]} Qc6 {[%emt 0:00:30]} 29. Qe4 {[%emt 0:00:30]} Qxe4 {[%emt 0:00:30]} 30. Rxe4 {[%emt 0:00:30]} Rd8 {[%emt 0:00:30]} 31. g4 {[%emt 0:01:41]} Bf6 {[%emt 0:04:39]} 32. Kg2 {[%emt 0:01:41]} Bg5 {[%emt 0:03:34]} 33. Re5 {[%emt 0:04:18]} Rd3 {[%emt 0:01:32]} 34. Rxc5 {[%emt 0:01:42]} Rxb3 {[%emt 0:01:37]} 35. Rc8+ {[%emt 0:00:20]} Kh7 {[%emt 0:00:01]} 36. Ne5 {[%emt 0:00:56]} Rc3 {[%emt 0:07:36]} 37. Rf8 {[%emt 0:04:59]} Bf6 {[%emt 0:02:33]} 38. Nxf7 {[%emt 0:01:15]} g6 {[%emt 0:01:04]} 39. Nd6 {[%emt 0:01:38]} Bg7 {[%emt 0:01:06]} 40. Rf7 {[%emt 0:00:39]} Kg8 {[%emt 0:00:27]} 41. fxg6 {[%emt 0:09:13]} Rc6 {[%emt 0:04:23]} 42. Rd7 {[%emt 0:00:16]} Bf8 {[%emt 0:02:02]} 43. Ne4 {[%emt 0:05:56]} a6 {[%emt 0:05:51]} 44. h4 {[%emt 0:07:22]} Rxg6 {[%emt 0:00:08]} 45. g5 {[%emt 0:00:04]} hxg5 {[%emt 0:00:55]} 46. hxg5 {[%emt 0:00:06]} Bg7 {[%emt 0:00:28]} 47. Rb7 {[%emt 0:01:12]} a5 {[%emt 0:01:02]} 48. Rb5 {[%emt 0:00:22]} Rc6 {[%emt 0:04:44]} 49. Kf3 {[%emt 0:00:31]} Bd4 {[%emt 0:01:07]} 50. Rd5 {[%emt 0:02:52]} Bg7 {[%emt 0:01:57]} 51. Kf4 {[%emt 0:06:14]} b3 {[%emt 0:01:35]} 52. Rb5 $2 {[%emt 0:03:26]} (52. Rxa5 $15 b2 53. Rb5) 52... b2 {[%emt 0:00:14]} 53. Nf6+ $2 {[%emt 0:01:01]} (53. Rb8+ Kh7 54. Kf5) 53... Bxf6 {[%emt 0:00:19]} 54. gxf6 {[%emt 0:00:03]} Rc4+ {[%emt 0:00:04]} 55. Ke5 {[%emt 0:01:36]} Rb4 {[%emt 0:00:02]} 56. Rxa5 {[%emt 0:00:14]} b1=Q {[%emt 0:00:23]} 0-1

[Event "WTCC-65 2018"]
[Site "Radebeul"]
[Date "2018.07.11"]
[Round "5"]
[White "Renman, Nils-Gustaf"]
[Black "Nevednichy, Boris M"]
[Result "1-0"]
[ECO "E11"]
[WhiteElo "2343"]
[BlackElo "2115"]
[Annotator "ChessBase"]
[PlyCount "115"]
[EventDate "2018.07.07"]
[EventType "team-tourn"]
[EventCountry "GER"]
[SourceTitle "playchess.com"]
[Source "ChessBase"]
[SourceQuality "1"]
[TimeControl "40/5400+30:1800+30"]

1. d4 {[%emt 0:00:00]} Nf6 {[%emt 0:00:00]} 2. c4 {[%emt 0:00:00]} e6 {[%emt 0:00:00]} 3. Nf3 {[%emt 0:00:00]} Bb4+ {[%emt 0:00:15]} 4. Bd2 {[%emt 0:00:05]} Be7 {[%emt 0:00:14]} 5. Nc3 {[%emt 0:00:16]} d5 {[%emt 0:01:24]} 6. Qc2 {[%emt 0:03:10]} O-O {[%emt 0:02:14]} 7. e4 {[%emt 0:01:45]} dxe4 {[%emt 0:02:38]} 8. Nxe4 {[%emt 0:03:53]} Nc6 {[%emt 0:02:32]} 9. Bc3 {[%emt 0:03:47]} Nb4 {[%emt 0:09:43]} 10. Nxf6+ {[%emt 0:00:38]} gxf6 {[%emt 0:00:04]} 11. Qd2 {[%emt 0:00:56]} a5 {[%emt 0:02:32]} 12. a3 {[%emt 0:00:49]} c5 {[%emt 0:01:23]} 13. axb4 {[%emt 0:13:53]} cxb4 {[%emt 0:00:06]} 14. Bd3 {[%emt 0:00:05]} bxc3 {[%emt 0:00:56]} 15. bxc3 {[%emt 0:00:08]} f5 {[%emt 0:00:44]} 16. Qh6 {[%emt 0:04:22]} Bf6 {[%emt 0:12:55]} 17. g4 {[%emt 0:01:17]} Bg7 {[%emt 0:02:50]} 18. Qh5 {[%emt 0:00:23]} Qe8 {[%emt 0:08:29]} 19. gxf5 {[%emt 0:05:41]} exf5+ {[%emt 0:00:06]} 20. Kd2 {[%emt 0:00:19]} Ra6 {[%emt 0:04:19]} 21. Rhg1 {[%emt 0:06:27]} Kh8 {[%emt 0:02:44]} 22. Bxf5 {[%emt 0:04:23]} Bxf5 {[%emt 0:03:20]} 23. Qxf5 {[%emt 0:00:10]} Rf6 {[%emt 0:00:48]} 24. Qd3 {[%emt 0:01:48]} Qb8 {[%emt 0:02:01]} 25. Rg4 {[%emt 0:02:29]} Qc8 {[%emt 0:05:41]} 26. Rh4 {[%emt 0:15:11]} Qf5 {[%emt 0:02:17]} 27. Qxf5 {[%emt 0:00:26]} Rxf5 {[%emt 0:00:02]} 28. Rh3 {[%emt 0:00:18]} b6 {[%emt 0:00:25]} 29. Kd3 {[%emt 0:02:53]} Ra8 {[%emt 0:05:57]} 30. Ra2 {[%emt 0:06:21]} Re8 {[%emt 0:04:24]} 31. Re2 {[%emt 0:04:36]} Rxe2 {[%emt 0:00:03]} 32. Kxe2 {[%emt 0:00:05]} a4 {[%emt 0:00:33]} 33. Rg3 {[%emt 0:00:26]} Bf8 {[%emt 0:08:30]} 34. Rg1 {[%emt 0:01:08]} a3 {[%emt 0:00:43]} 35. Ne5 {[%emt 0:04:53]} Bd6 {[%emt 0:00:29]} 36. Nd7 {[%emt 0:00:21]} a2 {[%emt 0:05:08]} 37. Ra1 {[%emt 0:00:50]} Ra5 {[%emt 0:01:53]} 38. h3 {[%emt 0:01:58]} Bc7 {[%emt 0:01:08]} 39. Kd3 {[%emt 0:04:59]} Ra8 {[%emt 0:02:10]} 40. c5 {[%emt 0:00:28]} bxc5 {[%emt 0:00:08]} 41. Nxc5 {[%emt 0:30:13]} Bd6 {[%emt 0:31:39]} 42. Nb3 {[%emt 0:01:38]} Bf4 {[%emt 0:00:16]} 43. c4 {[%emt 0:02:01]} Bg5 {[%emt 0:01:05]} 44. Kc3 {[%emt 0:01:01]} Bh4 {[%emt 0:00:08]} 45. f3 {[%emt 0:00:00]} Re8 {[%emt 0:00:00]} 46. Rxa2 {[%emt 0:00:00]} Re3+ {[%emt 0:00:00]} 47. Kb4 {[%emt 0:00:00]} Be1+ {[%emt 0:00:00]} 48. Ka4 {[%emt 0:00:00]} Rxf3 {[%emt 0:00:00]} 49. Rc2 {[%emt 0:00:00]} f5 {[%emt 0:00:00]} 50. c5 {[%emt 0:00:00]} Bg3 {[%emt 0:00:00]} 51. d5 {[%emt 0:00:00]} Rd3 {[%emt 0:00:00]} 52. Rd2 {[%emt 0:00:00]} Re3 {[%emt 0:00:00]} 53. d6 {[%emt 0:00:00]} Re8 {[%emt 0:00:00]} 54. Nd4 {[%emt 0:00:00]} Be1 {[%emt 0:00:00]} 55. Re2 {[%emt 0:00:00]} Ra8+ {[%emt 0:00:00]} 56. Kb5 {[%emt 0:00:00]} Ra5+ {[%emt 0:00:00]} 57. Kb6 {[%emt 0:00:00]} Ra1 {[%emt 0:00:00]} 58. Rxe1 {[%emt 0:00:00]} 1-0

[Event "WTCC-65 2018"]
[Site "Radebeul"]
[Date "2018.07.11"]
[Round "5"]
[White "Karasev, Vladimir I"]
[Black "Rashkovsky, Nukhim N"]
[Result "1/2-1/2"]
[ECO "B52"]
[WhiteElo "2337"]
[BlackElo "2483"]
[Annotator "ChessBase"]
[PlyCount "36"]
[EventDate "2018.07.07"]
[EventType "team-tourn"]
[EventCountry "GER"]
[SourceTitle "playchess.com"]
[Source "ChessBase"]
[SourceQuality "1"]
[TimeControl "40/5400+30:1800+30"]

1. e4 {[%emt 0:00:13]} c5 {[%emt 0:00:00]} 2. Nf3 {[%emt 0:00:04]} d6 {[%emt 0:00:00]} 3. Bb5+ {[%emt 0:00:34]} Bd7 {[%emt 0:01:14]} 4. Bxd7+ {[%emt 0:00:07]} Nxd7 {[%emt 0:00:04]} 5. c4 {[%emt 0:01:25]} Ne5 {[%emt 0:00:17]} 6. Nxe5 {[%emt 0:01:43]} dxe5 {[%emt 0:00:02]} 7. Qa4+ {[%emt 0:00:11]} Qd7 {[%emt 0:00:05]} 8. Qxd7+ {[%emt 0:00:07]} Kxd7 {[%emt 0:00:01]} 9. Nc3 {[%emt 0:00:19]} e6 {[%emt 0:00:15]} 10. d3 {[%emt 0:00:23]} Ne7 {[%emt 0:03:09]} 11. O-O {[%emt 0:03:09]} Nc6 {[%emt 0:07:04]} 12. f4 {[%emt 0:00:54]} Bd6 {[%emt 0:00:17]} 13. f5 {[%emt 0:01:07]} Be7 {[%emt 0:08:45]} 14. fxe6+ {[%emt 0:01:07]} fxe6 {[%emt 0:01:22]} 15. Rf7 {[%emt 0:03:15]} Rhg8 {[%emt 0:00:51]} 16. Be3 {[%emt 0:02:59]} Ke8 {[%emt 0:00:59]} 17. Rf3 {[%emt 0:17:23]} Rd8 {[%emt 0:00:15]} 18. Rd1 {[%emt 0:01:05]} h5 1/2-1/2